Workbook

Sheet прилож. № 7
A1: Приложение № 2
A2: к решению Думы Ушаковского муниципального образования от 31.05.2018 г. №__ "О внесении изменений в решение Думы Ушаковского муниципального образования № 66 от 08.12.2017 г. "Об утверждении бюджета на 2018 г. и на плановый период 2019-2020 годов"
A4: РАСПРЕДЕЛЕНИЕ БЮДЖЕТНЫХ АССИГНОВАНИЙ ПО РАЗДЕЛАМ, ПОДРАЗДЕЛАМ, ЦЕЛЕВЫМ СТАТЬЯМ (МУНИЦИПАЛЬНЫМ ПРОГРАММАМ И НЕПРОГРАММНЫМ НАПРАВЛЕНИЯМ ДЕЯТЕЛЬНОСТИ) И ВИДАМ РАСХОДОВ КЛАССИФИКАЦИИ РАСХОДОВ БЮДЖЕТОВ НА 2018 ГОД
A6: Наименование | B6: РЗ | C6: Пр | D6: КЦСР | E6: КВР | F6: Сумма (тыс. руб)
A7: В С Е Г О | F7: =F8+F90+F95+F104+F125+F173+F191+F208 -> 87514.4
A8: ОБЩЕГОСУДАРСТВЕННЫЕ ВОПРОСЫ | B8: 01 | C8: 00 | D8: 00.0.00.00000 | E8: 000 | F8: =F9+F41+F79+F33+F86 -> 22433.6
A9: Функционирование высшего должностного лица субъекта Российской Федерации и муниципального образования | B9: 01 | C9: 02 | D9: 00.0.00.00000 | E9: 000 | F9: =F10 -> 1856.3
A10: Непрограммные расходы органов местного самоуправления | B10: 01 | C10: 02 | D10: 91.0.00.00000 | E10: 000 | F10: =F11+F18 -> 1856.3
A11: Непрограммные расходы органов местного самоуправления за счет средств местного бюджета | B11: 01 | C11: 02 | D11: 91.1.00.00000 | E11: 000 | F11: =F12 -> 1856.3
A12: Осуществление органами местного самоуправления полномочий местного значения поселения | B12: 01 | C12: 02 | D12: 91.1.00.60000 | E12: 000 | F12: =F13 -> 1856.3
A13: Обеспечение деятельности в сфере установленных функций | B13: 01 | C13: 02 | D13: 91.1.00.60001 | E13: 000 | F13: =F16+F17+F32 -> 1856.3
A14: Расходы на выплаты персоналу в целях обеспечения выполнения функций государственными (муниципальными) органами, казенными учреждениями, органами управления государственными внебюджетными фондами | B14: 01 | C14: 02 | D14: 91.1.00.60001 | E14: 100 | F14: =F15 -> 1856.3
A15: Расходы на выплаты персоналу государственных (муниципальных) органов | B15: 01 | C15: 02 | D15: 91.1.00.60001 | E15: 120 | F15: =F16+F17+F32 -> 1856.3
A16: Фонд оплаты труда государственных (муниципальных) органов | B16: 01 | C16: 02 | D16: 91.1.00.60001 | E16: 121 | F16: 1413.1
A17: Взносы по обязательному социальному страхованию на выплаты денежного содержания и иные выплаты работникам государственных (муниципальных) органов | B17: 01 | C17: 02 | D17: 91.1.00.60001 | E17: 129 | F17: 343.2
A18: Непрограммные расходы органов местного самоуправления за счет средств областного бюджета | B18: 01 | C18: 02 | D18: 91.1.00.60003 | E18: 000 | F18: =F19 -> 0
A19: Субсидии на выравнивание обеспеченности муниципальных образований Иркутской области по реализации ими их отдельных расходных обязательств | B19: 01 | C19: 02 | D19: 91.1.00.60004 | E19: 000 | F19: =F20 -> 0
A20: Расходы на выплаты персоналу в целях обеспечения выполнения функций государственными (муниципальными) органами, казенными учреждениями, органами управления государственными внебюджетными фондами | B20: 01 | C20: 02 | D20: 91.1.00.60005 | E20: 100 | F20: =F21 -> 0
A21: Расходы на выплаты персоналу государственных (муниципальных) органов | B21: 01 | C21: 02 | D21: 91.1.00.60006 | E21: 120 | F21: =F22+F23 -> 0
A22: Фонд оплаты труда государственных (муниципальных) органов | B22: 01 | C22: 02 | D22: 91.1.00.60007 | E22: 121 | F22: 0
A23: Взносы по обязательному социальному страхованию на выплаты денежного содержания и иные выплаты работникам государственных (муниципальных) органов | B23: 01 | C23: 02 | D23: 91.1.00.60008 | E23: 129 | F23: 0
A24: Функционирование Правительства Российской Федерации, высших исполнительных органов государственной власти субъектов РФ, местных администраций | B24: 01 | C24: 04 | D24: 91.1.00.60009 | E24: 000 | F24: =F41+F25 -> 16857.9
A25: Программные расходы | B25: 01 | C25: 04 | D25: 91.1.00.60010 | E25: 000 | F25: =F26 -> 0
A26: Муниципальная программа "Подготовка к празднованию 70-летия победы" | B26: 01 | C26: 04 | D26: 91.1.00.60011 | E26: 000 | F26: 0
A27: Реализация мероприятий муниципальной программы за счет средств местного бюджета | B27: 01 | C27: 04 | D27: 91.1.00.60012 | E27: 000 | F27: 0
A28: Мероприятия, связанные, с подготовкой к празднованию 70-летия победы | B28: 01 | C28: 04 | D28: 91.1.00.60013 | E28: 000 | F28: 0
A29: Закупка товаров, работ и услуг для обеспечения государственных (муниципальных) нужд | B29: 01 | C29: 04 | D29: 91.1.00.60014 | E29: 200 | F29: 0
A30: Иные закупки товаров, работ и услуг для обеспечения государственных (муниципальных) нужд | B30: 01 | C30: 04 | D30: 91.1.00.60015 | E30: 240 | F30: 0
A31: Прочая закупка товаров, работ и услуг для обеспечения государственных (муниципальных) нужд | B31: 01 | C31: 04 | D31: 91.1.00.60016 | E31: 244
A32: Иные выплаты персоналу государственных (муниципальных) органов, за исключением фонда оплаты труда | B32: 01 | C32: 02 | D32: 91.1.00.60001 | E32: 122 | F32: 100
A33: Функционирование законодательных (представительных) органов государственной власти и представительных органов муниципальных образований | B33: 01 | C33: 03 | D33: 91.1.00.00000 | E33: 000 | F33: 765.4
A34: Непрограммные расходы органов местного самоуправления за счет средств местного бюджета | B34: 01 | C34: 03 | D34: 91.1.00.00000 | E34: 000 | F34: 765.4
A35: Осуществление органами местного самоуправления полномочий местного значения поселения | B35: 01 | C35: 03 | D35: 91.1.00.60000 | E35: 000 | F35: 765.4
A36: Обеспечение деятельности в сфере установленных функций | B36: 01 | C36: 03 | D36: 91.1.00.60001 | E36: 000 | F36: 765.4
A37: Расходы на выплаты персоналу в целях обеспечения выполнения функций государственными (муниципальными) органами, казенными учреждениями, органами управления государственными внебюджетными фондами | B37: 01 | C37: 03 | D37: 91.1.00.60001 | E37: 100 | F37: 765.4
A38: Расходы на выплаты персоналу государственных (муниципальных) органов | B38: 01 | C38: 03 | D38: 91.1.00.60001 | E38: 120 | F38: =F39+F40 -> 765.4
A39: Фонд оплаты труда государственных (муниципальных) органов | B39: 01 | C39: 03 | D39: 91.1.00.60001 | E39: 121 | F39: 587.9
A40: Взносы по обязательному социальному страхованию на выплаты денежного содержания и иные выплаты работникам государственных (муниципальных) органов | B40: 01 | C40: 03 | D40: 91.1.00.60001 | E40: 129 | F40: 177.5
A41: Непрограммные расходы органов местного самоуправления | B41: 01 | C41: 04 | D41: 91.0.00.00000 | E41: 000 | F41: =F42+F58 -> 16857.9
A42: Непрограммные расходы органов местного самоуправления за счет средств местного бюджета | B42: 01 | C42: 04 | D42: 91.1.00.00000 | E42: 000 | F42: =F43 -> 16857.2
A43: Осуществление органами местного самоуправления полномочий местного значения поселения | B43: 01 | C43: 04 | D43: 91.1.00.60000 | E43: 000 | F43: =F44 -> 16857.2
A44: Обеспечение деятельности в сфере установленных функций | B44: 01 | C44: 04 | D44: 91.1.00.60001 | E44: 000 | F44: =F45+F49+F52 -> 16857.2
A45: Расходы на выплаты персоналу в целях обеспечения выполнения функций государственными (муниципальными) органами, казенными учреждениями, органами управления государственными внебюджетными фондами | B45: 01 | C45: 04 | D45: 91.1.00.60001 | E45: 100 | F45: =F46 -> 13064.2
A46: Расходы на выплаты персоналу государственных (муниципальных) органов | B46: 01 | C46: 04 | D46: 91.1.00.60001 | E46: 120 | F46: =F47+F48 -> 13064.2
A47: Фонд оплаты труда государственных (муниципальных) органов | B47: 01 | C47: 04 | D47: 91.1.00.60001 | E47: 121 | F47: 10034
A48: Взносы по обязательному социальному страхованию на выплаты денежного содержания и иные выплаты работникам государственных (муниципальных) органов | B48: 01 | C48: 04 | D48: 91.1.00.60001 | E48: 129 | F48: 3030.2
A49: Закупка товаров, работ и услуг для обеспечения государственных (муниципальных) нужд | B49: 01 | C49: 04 | D49: 91.1.00.60001 | E49: 200 | F49: =F50 -> 3511.7
A50: Иные закупки товаров, работ и услуг для обеспечения государственных (муниципальных) нужд | B50: 01 | C50: 04 | D50: 91.1.00.60001 | E50: 240 | F50: =F51 -> 3511.7
A51: Прочая закупка товаров, работ и услуг для обеспечения государственных (муниципальных) нужд | B51: 01 | C51: 04 | D51: 91.1.00.60001 | E51: 244 | F51: =3716.7-105-100 -> 3511.7
A52: Иные бюджетные ассигнования | B52: 01 | C52: 04 | D52: 91.1.00.60001 | E52: 800 | F52: =F53+F56 -> 281.3
A53: Уплата налогов,сборов и иных платежей | B53: 01 | C53: 04 | D53: 91.1.00.60001 | E53: 850 | F53: =F54+F55 -> 51
A54: Уплата прочих налогов, сборов | B54: 01 | C54: 04 | D54: 91.1.00.60001 | E54: 852 | F54: 16
A55: Уплата иных платежей | B55: 01 | C55: 04 | D55: 91.1.00.60001 | E55: 853 | F55: 35
A56: Исполнение судебных актов | B56: 01 | C56: 04 | D56: 91.1.00.60001 | E56: 830 | F56: =F57 -> 230.3
A57: Исполнение судебных актов Российской Федерации и мировых соглашений по возмещению вреда, причиненного в результате незаконных действий (бездействия) органов государственной власти (государственных органов), органов местного самоуправления либо должностных лиц этих органов, а также в результате деятельности казенных учреждений | B57: 01 | C57: 04 | D57: 91.1.00.60001 | E57: 831 | F57: =125.3+105 -> 230.3
A58: Непрограммные расходы органов местного самоуправления за счет средств областного бюджета | B58: 01 | C58: 04 | D58: 91.2.00.00000 | E58: 000 | F58: =F67+F59 -> 0.7
A59: Субсидии на выравнивание обеспеченности муниципальных образований Иркутской области по реализации ими их отдельных расходных обязательств | B59: 01 | C59: 04 | D59: 91.2.00.72600 | E59: 000 | F59: =F60+F64 -> 0
A60: Расходы на выплаты персоналу в целях обеспечения выполнения функций государственными (муниципальными) органами, казенными учреждениями, органами управления государственными внебюджетными фондами | B60: 01 | C60: 04 | D60: 91.2.00.72600 | E60: 100 | F60: =F61 -> 0
A61: Расходы на выплаты персоналу государственных (муниципальных) органов | B61: 01 | C61: 04 | D61: 91.2.00.72600 | E61: 120 | F61: =F62+F63 -> 0
A62: Фонд оплаты труда государственных (муниципальных) органов | B62: 01 | C62: 04 | D62: 91.2.00.72600 | E62: 121 | F62: 0
A63: Взносы по обязательному социальному страхованию на выплаты денежного содержания и иные выплаты работникам государственных (муниципальных) органов | B63: 01 | C63: 04 | D63: 91.2.00.72600 | E63: 129 | F63: 0
A64: Иные закупки товаров, работ и услуг для обеспечения государственных (муниципальных) нужд | B64: 01 | C64: 04 | D64: 91.2.00.72600 | E64: 200 | F64: =F65 -> 0
A65: Прочая закупка товаров, работ и услуг для обеспечения государственных (муниципальных) нужд | B65: 01 | C65: 04 | D65: 91.2.00.72600 | E65: 240 | F65: =F66 -> 0
A66: Прочая закупка товаров, работ и услуг для обеспечения государственных (муниципальных) нужд | B66: 01 | C66: 04 | D66: 91.2.00.72600 | E66: 244 | F66: 0
A67: Субвенции на осуществление областного государственного полномочия по определению перечня должностных лиц органов местного самоуправления, уполномоченных составлять протоколы об административных правонарушениях, предусмотренных отдельными законами Иркутской области об административной ответственности | B67: 01 | C67: 04 | D67: 91.2.00.73150 | E67: 000 | F67: =F70 -> 0.7
A68: Закупка товаров, работ и услуг для обеспечения государственных (муниципальных) нужд | B68: 01 | C68: 04 | D68: 91.2.00.73150 | E68: 200 | F68: =F69 -> 0.7
A69: Иные закупки товаров, работ и услуг для обеспечения государственных (муниципальных) нужд | B69: 01 | C69: 04 | D69: 91.2.00.73150 | E69: 240 | F69: =F70 -> 0.7
A70: Прочая закупка товаров, работ и услуг для обеспечения государственных (муниципальных) нужд | B70: 01 | C70: 04 | D70: 91.2.00.73150 | E70: 244 | F70: 0.7
A71: Обеспечение проведения выборов и референдумов | B71: 01 | C71: 07 | D71: 00.0.00.00000 | E71: 000 | F71: =F72 -> 0
A72: Непрограммные расходы органов местного самоуправления | B72: 01 | C72: 07 | D72: 91.0.00.00000 | E72: 000 | F72: 0
A73: Непрограммные расходы органов местного самоуправления за счет средств местного бюджета | B73: 01 | C73: 07 | D73: 91.1.00.00000 | E73: 000 | F73: 0
A74: Осуществление органами местного самоуправления полномочий местного значения поселения | B74: 01 | C74: 07 | D74: 91.1.00.60000 | E74: 000 | F74: 0
A75: Проведения выборов и референдумов | B75: 01 | C75: 07 | D75: 91.1.00.60003 | E75: 000 | F75: 0
A76: Закупка товаров, работ и услуг для обеспечения государственных (муниципальных) нужд | B76: 01 | C76: 07 | D76: 91.1.00.60003 | E76: 200 | F76: 0
A77: Иные закупки товаров, работ и услуг для обеспечения государственных (муниципальных) нужд | B77: 01 | C77: 07 | D77: 91.1.00.60003 | E77: 240 | F77: 0
A78: Прочая закупка товаров, работ и услуг для обеспечения государственных (муниципальных) нужд | B78: 01 | C78: 07 | D78: 91.1.00.60003 | E78: 244 | F78: 0
A79: Резервные фонды | B79: 01 | C79: 11 | D79: 00.0.00.00000 | E79: 000 | F79: =F80 -> 300
A80: Непрограммные расходы органов местного самоуправления | B80: 01 | C80: 11 | D80: 91.1.00.00000 | E80: 000 | F80: 300
A81: Непрограммные расходы органов местного самоуправления за счет средств местного бюджета | B81: 01 | C81: 11 | D81: 91.1.00.00000 | E81: 000 | F81: =F82 -> 300
A82: Осуществление органами местного самоуправления полномочий местного значения поселения | B82: 01 | C82: 11 | D82: 91.1.00.60000 | E82: 000 | F82: 300
A83: Резервный фонд администрации муниципального образования | B83: 01 | C83: 11 | D83: 91.1.00.60004 | E83: 000 | F83: 300
A84: Иные бюджетные ассигнования | B84: 01 | C84: 11 | D84: 91.1.00.60004 | E84: 800 | F84: 300
A85: Резервные средства | B85: 01 | C85: 11 | D85: 91.1.00.60004 | E85: 870 | F85: 300
A86: Другие общегосударственные вопросы | B86: 01 | C86: 13 | D86: 91.1.00.00000 | E86: 000 | F86: =F87 -> 2654
A87: Расходы на выплату персоналу в целях обеспечения выполнения функций государственными (муниципальными) органами, казенными учреждениями, органами управления государственными внебюджетными фондами | B87: 01 | C87: 13 | D87: 91.1.00.60002 | E87: 100 | F87: =F88+F89 -> 2654
A88: Фонд оплаты труда казенных учреждений и взносы по обязательному социальному страхованию | B88: 01 | C88: 13 | D88: 91.1.00.60002 | E88: 111 | F88: 2088.1
A89: Взносы по обязательному социальному страхованию на выплаты по оплате труда работников и иные выплаты работникам учреждений | B89: 01 | C89: 13 | D89: 91.1.00.60002 | E89: 119 | F89: 565.9
A90: НАЦИОНАЛЬНАЯ ОБОРОНА | B90: 02 | C90: 00 | D90: 00.0.00.00000 | E90: 000 | F90: =F91+F92+F93 -> 327.2
A91: Мобилизационная и вневойсковая подготовка | B91: 02 | C91: 03 | D91: 91.3.00.51180 | E91: 121 | F91: 228.3
A92: Мобилизационная и вневойсковая подготовка | B92: 02 | C92: 03 | D92: 91.3.00.51180 | E92: 129 | F92: 68.9
A93: Закупка товаров, работ и услуг для обеспечения государственных (муниципальных) нужд | B93: 02 | C93: 03 | D93: 91.3.00.51180 | E93: 200 | F93: 30
A94: Иные закупки товаров, работ и услуг для обеспечения государственных (муниципальных) нужд | B94: 02 | C94: 03 | D94: 91.3.00.51180 | E94: 240 | F94: 30
A95: НАЦИОНАЛЬНАЯ БЕЗОПАСНОСТЬ И ПРАВООХРАНИТЕЛЬНАЯ ДЕЯТЕЛЬНОСТЬ | B95: 03 | C95: 00 | D95: 00.0.00.00000 | E95: 000 | F95: =F96 -> 350
A96: Обеспечение пожарной безопасности | B96: 03 | C96: 10 | D96: 00.0.00.00000 | E96: 000 | F96: 350
A97: Непрограммные расходы органов местного самоуправления | B97: 03 | C97: 10 | D97: 91.0.00.00000 | E97: 000 | F97: 350
A98: Непрограммные расходы органов местного самоуправления за счет средств местного бюджета | B98: 03 | C98: 10 | D98: 91.1.00.00000 | E98: 000 | F98: 350
A99: Осуществление органами местного самоуправления полномочий местного значения поселения | B99: 03 | C99: 10 | D99: 91.1.00.60000 | E99: 000 | F99: 350
A100: Реализация других функций, связанных с обеспечением национальной безопасности и правоохранительной деятельности | B100: 03 | C100: 10 | D100: 91.1.00.60007 | E100: 000 | F100: 350
A101: Закупка товаров, работ и услуг для обеспечения государственных (муниципальных) нужд | B101: 03 | C101: 10 | D101: 91.1.00.60007 | E101: 200 | F101: 350
A102: Иные закупки товаров, работ и услуг для обеспечения государственных (муниципальных) нужд | B102: 03 | C102: 10 | D102: 91.1.00.60007 | E102: 240 | F102: =F103 -> 350
A103: Прочая закупка товаров, работ и услуг для обеспечения государственных (муниципальных) нужд | B103: 03 | C103: 10 | D103: 91.1.00.60007 | E103: 244 | F103: 350
A104: НАЦИОНАЛЬНАЯ ЭКОНОМИКА | B104: 04 | C104: 00 | D104: 00.0.00.00000 | E104: 000 | F104: =F105+F115 -> 17296.8
A105: Дорожное хозяйство (дорожные фонды) | B105: 04 | C105: 09 | D105: 00.0.00.00000 | E105: 000 | F105: =F106 -> 7593.8
A106: Непрограммные расходы органов местного самоуправления | B106: 04 | C106: 09 | D106: 91.0.00.00000 | E106: 000 | F106: 7593.8
A107: Непрограммные расходы органов местного самоуправления за счет средств местного бюджета | B107: 04 | C107: 09 | D107: 91.1.00.00000 | E107: 000 | F107: 7593.8
A108: Осуществление органами местного самоуправления полномочий местного значения поселения | B108: 04 | C108: 09 | D108: 91.1.00.60000 | E108: 000 | F108: =F110 -> 7593.8
A109: Приобретение материальных и нематериальных активов в сфере установленных функций | B109: 04 | C109: 09 | D109: 91.1.00.60010 | E109: 000 | F109: =F111 -> 7593.8
A110: Иные мероприятия и сфере установленных функций | B110: 04 | C110: 09 | D110: 91.1.00.60011 | E110: 000 | F110: 7593.8
A111: Закупка товаров, работ и услуг для обеспечения государственных (муниципальных) нужд | B111: 04 | C111: 09 | D111: 91.1.00.60011 | E111: 200 | F111: 7593.8
A112: Иные закупки товаров, работ и услуг для обеспечения государственных (муниципальных) нужд | B112: 04 | C112: 09 | D112: 91.1.00.60011 | E112: 240 | F112: =F114+F113 -> 7593.8
A113: Закупка товаров, работ, услуг в целях капитального ремонта государственного (муниципального) имущества | B113: 04 | C113: 09 | D113: 91.1.00.60011 | E113: 243 | F113: 1960
A114: Прочая закупка товаров, работ и услуг для обеспечения государственных (муниципальных) нужд | B114: 04 | C114: 09 | D114: 91.1.00.60011 | E114: 244 | F114: 5633.8
A115: Другие вопросы в области национальной экономике | B115: 04 | C115: 12 | D115: 00.0.00.00000 | E115: 000 | F115: =F116 -> 9703
A116: Непрограммные расходы органов местного самоуправления | B116: 04 | C116: 12 | D116: 91.1.00.00000 | E116: 000 | F116: 9703
A117: Непрограммные расходы органов местного самоуправления за счет средств местного бюджета | B117: 04 | C117: 12 | D117: 91.1.00.00000 | E117: 000 | F117: 9703
A118: Осуществление органами местного самоуправления полномочий местного значения поселения | B118: 04 | C118: 12 | D118: 91.1.00.60000 | E118: 000 | F118: =F120 -> 9703
A119: Приобретение материальных и нематериальных активов в сфере установленных функций | B119: 04 | C119: 12 | D119: 91.1.00.60010 | E119: 000 | F119: 9703
A120: Иные мероприятия и сфере установленных функций | B120: 04 | C120: 12 | D120: 91.1.00.60011 | E120: 000 | F120: 9703
A121: Закупка товаров, работ и услуг для обеспечения государственных (муниципальных) нужд | B121: 04 | C121: 12 | D121: 91.1.00.60011 | E121: 200 | F121: 9703
A122: Иные закупки товаров, работ и услуг для обеспечения государственных (муниципальных) нужд | B122: 04 | C122: 12 | D122: 91.1.00.60011 | E122: 240 | F122: =F124+F123 -> 9703
A123: Закупка товаров, работ, услуг в целях капитального ремонта государственного (муниципального) имущества | B123: 04 | C123: 12 | D123: 91.1.00.60011 | E123: 243 | F123: 873.7
A124: Прочая закупка товаров, работ и услуг для обеспечения государственных (муниципальных) нужд | B124: 04 | C124: 12 | D124: 91.1.00.60011 | E124: 244 | F124: 8829.3
A125: ЖИЛИЩНО-КОММУНАЛЬНОЕ ХОЗЯЙСТВО | B125: 05 | C125: 00 | D125: 00.0.00.00000 | E125: 000 | F125: =F126+F134+F143 -> 27555.7
A126: Жилищное хозяйство | B126: 05 | C126: 01 | D126: 00.0.00.00000 | E126: 000 | F126: =F127 -> 6040
A127: Непрограммные расходы органов местного самоуправления | B127: 05 | C127: 01 | D127: 91.0.00.00000 | E127: 000 | F127: 6040
A128: Непрограммные расходы органов местного самоуправления за счет средств местного бюджета | B128: 05 | C128: 01 | D128: 91.1.00.00000 | E128: 000 | F128: 6040
A129: Осуществление органами местного самоуправления полномочий местного значения поселения | B129: 05 | C129: 01 | D129: 91.1.00.60000 | E129: 000 | F129: 6040
A130: Текущий ремонт в сфере установленных функций | B130: 05 | C130: 01 | D130: 91.1.00.60009 | E130: 000 | F130: 6040
A131: Закупка товаров, работ и услуг для обеспечения государственных (муниципальных) нужд | B131: 05 | C131: 01 | D131: 91.1.00.60009 | E131: 200 | F131: 6040
A132: Иные закупки товаров, работ и услуг для обеспечения государственных (муниципальных) нужд | B132: 05 | C132: 01 | D132: 91.1.00.60009 | E132: 240 | F132: 6040
A133: Прочая закупка товаров, работ и услуг для обеспечения государственных (муниципальных) нужд | B133: 05 | C133: 01 | D133: 91.1.00.60009 | E133: 244 | F133: =40+6000 -> 6040
A134: Коммунальное хозяйство | B134: 05 | C134: 02 | D134: 00.0.00.00000 | E134: 000 | F134: =F135 -> 8400.7
A135: Непрограммные расходы органов местного самоуправления | B135: 05 | C135: 02 | D135: 91.0.00.00000 | E135: 000 | F135: =F137 -> 8400.7
A136: Непрограммные расходы органов местного самоуправления за счет средств местного бюджета | B136: 05 | C136: 02 | D136: 91.1.00.00000 | E136: 000 | F136: =F137 -> 8400.7
A137: Осуществление органами местного самоуправления полномочий местного значения поселения | B137: 05 | C137: 02 | D137: 91.1.00.60000 | E137: 000 | F137: =F138 -> 8400.7
A138: Иные мероприятия и сфере установленных функций | B138: 05 | C138: 02 | D138: 91.1.00.60011 | E138: 000 | F138: =F139 -> 8400.7
A139: Закупка товаров, работ и услуг для обеспечения государственных (муниципальных) нужд | B139: 05 | C139: 02 | D139: 91.1.00.60011 | E139: 200 | F139: =F140 -> 8400.7
A140: Иные закупки товаров, работ и услуг для обеспечения государственных (муниципальных) нужд | B140: 05 | C140: 02 | D140: 91.1.00.60011 | E140: 240 | F140: =F142+F141 -> 8400.7
A141: Закупка товаров, работ и услуг в целях капитального ремонта государственного (муниципального) имущества | B141: 05 | C141: 02 | D141: 91.1.00.60011 | E141: 243 | F141: 6800
A142: Прочая закупка товаров, работ и услуг для обеспечения государственных (муниципальных) нужд | B142: 05 | C142: 02 | D142: 91.1.00.60011 | E142: 244 | F142: =7400+1000+0.3+0.4-6800 -> 1600.7
A143: Благоустройство | B143: 05 | C143: 03 | D143: 00.0.00.00000 | E143: 000 | F143: =F144 -> 13115
A144: Непрограммные расходы органов местного самоуправления | B144: 05 | C144: 03 | D144: 91.0.00.00000 | E144: 000 | F144: =F145 -> 13115
A145: Непрограммные расходы органов местного самоуправления за счет средств местного бюджета | B145: 05 | C145: 03 | D145: 91.1.00.00000 | E145: 000 | F145: =F146 -> 13115
A146: Осуществление органами местного самоуправления полномочий местного значения поселения | B146: 05 | C146: 03 | D146: 91.1.00.60000 | E146: 000 | F146: =F147 -> 13115
A147: Мероприятия в области жилищно-коммунального хозяйства | B147: 05 | C147: 03 | D147: 91.1.00.60100 | E147: 000 | F147: =F148+F154+F172 -> 13115
A148: Уличное освещение | B148: 05 | C148: 03 | D148: 91.1.00.60101 | E148: 000 | F148: =F149+F152 -> 2362.3
A149: Закупка товаров, работ и услуг для обеспечения государственных (муниципальных) нужд | B149: 05 | C149: 03 | D149: 91.1.00.60101 | E149: 200 | F149: =F150 -> 2362.3
A150: Иные закупки товаров, работ и услуг для обеспечения государственных (муниципальных) нужд | B150: 05 | C150: 03 | D150: 91.1.00.60101 | E150: 240 | F150: =F151 -> 2362.3
A151: Прочая закупка товаров, работ и услуг для обеспечения государственных (муниципальных) нужд | B151: 05 | C151: 03 | D151: 91.1.00.60101 | E151: 244 | F151: =1362.3+600+400 -> 2362.3
A152: Иные бюджетные ассигнования | B152: 05 | C152: 03 | D152: 91.1.00.60101 | E152: 800 | F152: =F153 -> 0
A153: Уплата иных платежей | B153: 05 | C153: 03 | D153: 91.1.00.60001 | E153: 853 | F153: 0
A154: Прочие мероприятия по благоустройству городских округов и поселений | B154: 05 | C154: 03 | D154: 91.1.00.60105 | E154: 000 | F154: =F155+F158+F162 -> 9972.4
A155: Закупка товаров, работ и услуг для обеспечения государственных (муниципальных) нужд | B155: 05 | C155: 03 | D155: 91.1.00.60105 | E155: 200 | F155: =F156 -> 7472.4
A156: Иные закупки товаров, работ и услуг для обеспечения государственных (муниципальных) нужд | B156: 05 | C156: 03 | D156: 91.1.00.60105 | E156: 240 | F156: =F157 -> 7472.4
A157: Прочая закупка товаров, работ и услуг для обеспечения государственных (муниципальных) нужд | B157: 05 | C157: 03 | D157: 91.1.00.60105 | E157: 244 | F157: 7472.4
A158: Реализация мероприятий перечня проектов народных инициатив за счет средств местного бюджета | B158: 05 | C158: 03 | D158: 91.1.00.S2370 | E158: 000 | F158: =F159 -> 250
A159: Закупка товаров, работ и услуг для обеспечения государственных (муниципальных) нужд | B159: 05 | C159: 03 | D159: 91.1.00.S2370 | E159: 200 | F159: =F160 -> 250
A160: Иные закупки товаров, работ и услуг для обеспечения государственных (муниципальных) нужд | B160: 05 | C160: 03 | D160: 91.1.00.S2370 | E160: 240 | F160: =F161 -> 250
A161: Прочая закупка товаров, работ и услуг для обеспечения государственных (муниципальных) нужд | B161: 05 | C161: 03 | D161: 91.1.00.S2370 | E161: 244 | F161: 250
A162: Непрограммные расходы органов местного самоуправления за счет средств областного бюджета | B162: 05 | C162: 03 | D162: 91.4.00.S2370 | E162: 000 | F162: =F163+F167 -> 2250
A163: Субсидии на реализацию мероприятий перечня проектов народных инициатив за счет областного бюджета | B163: 05 | C163: 03 | D163: 91.4.00.S2370 | E163: 000 | F163: =F164 -> 2250
A164: Закупка товаров, работ и услуг для обеспечения государственных (муниципальных) нужд | B164: 05 | C164: 03 | D164: 91.4.00.S2370 | E164: 200 | F164: =F165 -> 2250
A165: Иные закупки товаров, работ и услуг для обеспечения государственных (муниципальных) нужд | B165: 05 | C165: 03 | D165: 91.4.00.S2370 | E165: 240 | F165: =F166 -> 2250
A166: Прочая закупка товаров, работ и услуг для обеспечения государственных (муниципальных) нужд | B166: 05 | C166: 03 | D166: 91.4.00.S2370 | E166: 244 | F166: 2250
A167: Субсидии на выравнивание обеспеченности муниципальных образований Иркутской области по реализации ими их отдельных расходных обязательств | B167: 05 | C167: 03 | D167: 91.1.00.60115 | E167: 000 | F167: =F168 -> 0
A168: Закупка товаров, работ и услуг для обеспечения государственных (муниципальных) нужд | B168: 05 | C168: 03 | D168: 91.1.00.60116 | E168: 200 | F168: =F169 -> 0
A169: Иные закупки товаров, работ и услуг для обеспечения государственных (муниципальных) нужд | B169: 05 | C169: 03 | D169: 91.1.00.60117 | E169: 240 | F169: =F170 -> 0
A170: Прочая закупка товаров, работ и услуг для обеспечения государственных (муниципальных) нужд | B170: 05 | C170: 03 | D170: 91.1.00.60118 | E170: 244
A171: Субсидии юридическим лицам (кроме некоммерческих организаций), индивидуальным предпринимателям, физическим лицам – производителям товаров, работ, услуг | B171: 05 | C171: 03 | D171: 91.1.00.60100 | E171: 810 | F171: =F172 -> 780.3
A172: Субсидии на возмещение недополученных доходов и (или) возмещение фактически понесенных затрат в связи с производством (реализацией) товаров, выполнением работ, оказанием услуг | B172: 05 | C172: 03 | D172: 91.1.00.60105 | E172: 811 | F172: =3697.4-2917.1 -> 780.3
A173: КУЛЬТУРА, КИНЕМАТОГРАФИЯ | B173: 08 | C173: 00 | D173: 00.0.00.00000 | E173: 000 | F173: =F174 -> 19047.2
A174: КУЛЬТУРА | B174: 08 | C174: 01 | D174: 91.0.00.00000 | E174: 000 | F174: =F175+F181+F188 -> 19047.2
A175: Непрограммные расходы органов местного самоуправления | B175: 08 | C175: 01 | D175: 91.1.00.00000 | E175: 000 | F175: =F176 -> 13224
A176: Осуществление органами местного самоуправления полномочий местного значения поселения | B176: 08 | C176: 01 | D176: 91.1.00.60002 | E176: 000 | F176: =F177 -> 13224
A177: Расходы на выплату персоналу в целях обеспечения выполнения функций государственными (муниципальными) органами, казенными учреждениями, органами управления государственными внебюджетными фондами | B177: 08 | C177: 01 | D177: 91.1.00.60002 | E177: 100 | F177: =F178 -> 13224
A178: Расходы на выплату персоналу казенных учреждений | B178: 08 | C178: 01 | D178: 91.1.00.60002 | E178: 110 | F178: =F179+F180 -> 13224
A179: Фонд оплаты труда казенных учреждений и взносы по обязательному социальному страхованию | B179: 08 | C179: 01 | D179: 91.1.00.60002 | E179: 111 | F179: =10659-2088.1+1396 -> 9966.9 | H179: 1396
A180: Взносы по обязательному социальному страхованию на выплаты по оплате труда работников и иные выплаты работникам учреждений | B180: 08 | C180: 01 | D180: 91.1.00.60002 | E180: 119 | F180: =3219-565.9+604 -> 3257.1 | H180: 604
A181: Непрограммные расходы органов местного самоуправления | B181: 08 | C181: 01 | D181: 91.0.00.00000 | E181: 000 | F181: =F182 -> 5790.2
A182: Непрограммные расходы органов местного самоуправления за счет средств местного бюджета | B182: 08 | C182: 01 | D182: 91.1.00.00000 | E182: 000 | F182: 5790.2
A183: Осуществление органами местного самоуправления полномочий местного значения поселения | B183: 08 | C183: 01 | D183: 91.1.00.60000 | E183: 000 | F183: 5790.2
A184: Обеспечение деятельности в сфере установленных функции бюджетных, автономных и казенных учреждений | B184: 08 | C184: 01 | D184: 91.1.00.60002 | E184: 000 | F184: 5790.2
A185: Закупка товаров, работ и услуг для обеспечения государственных (муниципальных) нужд | B185: 08 | C185: 01 | D185: 91.1.00.60002 | E185: 200 | F185: 5790.2
A186: Иные закупки товаров, работ и услуг для обеспечения государственных (муниципальных) нужд | B186: 08 | C186: 01 | D186: 91.1.00.60002 | E186: 240 | F186: 5790.2
A187: Прочая закупка товаров, работ и услуг для обеспечения государственных (муниципальных) нужд | B187: 08 | C187: 01 | D187: 91.1.00.60002 | E187: 244 | F187: =3373.2+600-12+450+400-21+1000 -> 5790.2
A188: Иные бюджетные ассигнования | B188: 08 | C188: 01 | D188: 91.1.00.60002 | E188: 850 | F188: =F190+F189 -> 33
A189: Уплата прочих налогов, сборов | B189: 08 | C189: 01 | D189: 91.1.00.60002 | E189: 852 | F189: 8
A190: Уплата иных платежей | B190: 08 | C190: 01 | D190: 91.1.00.60002 | E190: 853 | F190: 25
A191: СОЦИАЛЬНАЯ ПОЛИТИКА | B191: 10 | C191: 00 | D191: 00.0.00.00000 | E191: 000 | F191: =F192 -> 244.7
A192: Пенсионное обеспечение | B192: 10 | C192: 01 | D192: 00.0.00.00000 | E192: 000 | F192: 244.7
A193: Непрограммные расходы органов местного самоуправления | B193: 10 | C193: 01 | D193: 91.0.00.00000 | E193: 000 | F193: 244.7
A194: Непрограммные расходы органов местного самоуправления за счет средств местного бюджета | B194: 10 | C194: 01 | D194: 91.1.00.00000 | E194: 000 | F194: 244.7
A195: Осуществление органами местного самоуправления полномочий местного значения поселения | B195: 10 | C195: 01 | D195: 91.1.00.60000 | E195: 000 | F195: 244.7
A196: Доплаты к пенсиям муниципальных служащих | B196: 10 | C196: 01 | D196: 91.1.00.60018 | E196: 000 | F196: 244.7
A197: Социальное обеспечение и иные выплаты населению | B197: 10 | C197: 01 | D197: 91.1.00.60018 | E197: 300 | F197: 244.7
A198: Публичные нормативные социальные выплаты гражданам | B198: 10 | C198: 01 | D198: 91.1.00.60018 | E198: 310 | F198: 244.7
A199: Иные пенсии, социальные доплаты к пенсиям | B199: 10 | C199: 01 | D199: 91.1.00.60018 | E199: 312 | F199: 244.7
A200: ФИЗИЧЕСКАЯ КУЛЬТУРА И СПОРТ | B200: 11 | C200: 00 | D200: 00.0.00.00000 | E200: 000 | F200: =F201 -> 
A201: Другие вопросы в области физической культуры и спорта | B201: 11 | C201: 05 | D201: 00.0.00.00000 | E201: 000
A202: Непрограммные расходы органов местного самоуправления | B202: 11 | C202: 05 | D202: 91.0.00.00000 | E202: 000
... 20 more rows
